Workbook

Sheet Monatliche Kostenaufstellung
A1: V.2023 | D1: Kostenaufstellung | F1: 2023/01 | Z1: 0 | AA1: Datum | AB1: =NOW() -> 2023-01-17T14:34:03.940 | AC1: 1
A2: Januar
A3: Gesellschaftsname : | AA3: MwSt. berechnen | AB3: =IF(AC1=1,"JA","NEIN") -> JA
A4: Identifizierungsnummer :
A5: VTI : | AA5: Wartezeit | AB5: =Data!B7 -> 41.53
A6: Adresse : | AA6: Dienstleistung | AB6: =Data!B2 -> 58.63
A7: PLZ : | AA7: Fahrtkosten | AB7: =Data!B6 -> 0.6471
A8: MwSt. : | AA8: FÖD Justiz
A9: Konto : | AA9: Boulevard de Waterloo 115
AA10: 1000 Brüssel
AA11: ZUD : BE 0308.357.753
A12: N° Leistung | B12: Datum | C12: Beginn der Wartezeit | D12: Wartezeit Ende | E12: Beginn der Leistung | F12: Leistung Ende | G12: Auftraggebende Behörde | H12: Aktenzeichen | I12: NJ | J12: EX | K12: Type | L12: Idem avant | M12: MA | N12: JN | O12: Forfait possible | P12: Forfait heure | Q12: Jour | R12: Nuit | S12: Tno | T12: Tsa | U12: Tco | V12: Tfe | W12: Tatt | X12: Suppl | Y12: Km | Z12: Fahrtkosten | AA12: Leistung und Wartezeit | AB12: Gesamtbetrag
A13: =ROW()-12 -> 1 | B13: 2100-01-01 | C13: 0 | D13: 0 | E13: 0 | F13: 0 | G13: ORIGINAL | H13: ORIGINAL | I13: =WEEKDAY(Tableau1[Datum],2) -> 5 | K13: =IF(OR(COUNTIF(Tableau3[Holidays],Tableau1[Datum]),Tableau1[NJ]=7),"F",IF(Tableau1[EX]="C","C",IF(Tableau1[NJ]=6,"SA","N"))) -> N | L13: =COUNTIF($B$10:B13,Tableau1[Datum]) -> 1 | M13: =IF(Tableau1[Beginn der Leistung]<12/24,0,1) -> 0 | N13: =IF(OR(Tableau1[Beginn der Leistung]<6/24,Tableau1[Beginn der Leistung]>=22/24),"NUIT","JOUR") -> NUIT | O13: =IF(OR(Tableau1[Idem avant]=1,Tableau1[MA]<>INDIRECT(ADDRESS(ROW()-1,COLUMN()-2))),"OUI","NON") -> OUI | P13: =IF(AND(Tableau1[Leistung Ende]-Tableau1[Beginn der Leistung]<1/24,Tableau1[Forfait possible]="OUI"),"OUI","NON") -> OUI | Q13: =IF(Tableau1[[#This Row],[Leistung Ende]]-Tableau1[[#This Row],[Beginn der Leistung]]=0,0,IF(AND(Tableau1[Forfait heure]="OUI",Tableau1[Type]="F"),0,IF(AND(Tableau1[Forfait heure]="OUI",Tableau1[JN]="NUIT"),0,IF(AND(Tableau1[Forfait heure]="OUI",Tableau1[JN]="JOUR"),1/24,IF(Tableau1[[#This Row],[Type]]="F",0,Tableau1[Leistung Ende]-Tableau1[Beginn der Leistung]-Tableau1[Nuit]))))) -> 0 | R13: =IF(Tableau1[[#This Row],[Leistung Ende]]-Tableau1[[#This Row],[Beginn der Leistung]]=0,0,IF(Tableau1[EX]="V",0,IF(AND(Tableau1[Forfait heure]="OUI",Tableau1[Type]="F"),1/24,IF(AND(Tableau1[Forfait heure]="OUI",Tableau1[JN]="NUIT"),1/24,IF(AND(Tableau1[Forfait heure]="OUI",Tableau1[JN]="JOUR"),0,IF(Tableau1[[#This Row],[Type]]="F",Tableau1[[#This Row],[Leistung Ende]]-Tableau1[[#This Row],[Beginn der Leistung]],IF(Tableau1[Beginn der Leistung]>=22/24,Tableau1[Leistung Ende]-Tableau1[Beginn der Leistung],IF(Tableau1[Leistung Ende]>=22/24,Tableau1[Leistung Ende]-22/24,IF(Tableau1[Leistung Ende]<6/24,Tableau1[Leistung Ende]-Tableau1[Beginn der Leistung],IF(Tableau1[Beginn der Leistung]<6/24,6/24-Tableau1[Beginn der Leistung],0)))))))))) -> 0 | S13: =IF(Tableau1[EX]="AN",0,IF(OR(Tableau1[Type]="F",Tableau1[Type]="SA",Tableau1[Type]="C"),0,Tableau1[Jour])) -> 0 | T13: =IF(Tableau1[EX]="AN",0,IF(Tableau1[Type]="SA",Tableau1[Jour],0)) -> 0 | U13: =IF(Tableau1[EX]="AN",0,IF(Tableau1[Type]="C",Tableau1[Jour],0)) -> 0 | V13: =IF(Tableau1[EX]="AN",0,Tableau1[Nuit]) -> 0 | W13: =IF(AND(Tableau1[EX]="AN",Tableau1[Wartezeit Ende]-Tableau1[Beginn der Wartezeit]<1/24),1/24,IF(Tableau1[EX]="AN",Tableau1[Wartezeit Ende]-Tableau1[Beginn der Wartezeit],IF(AND(Tableau1[Forfait heure]="OUI",(Tableau1[Leistung Ende]-Tableau1[Beginn der Leistung])+(Tableau1[Wartezeit Ende]-Tableau1[Beginn der Wartezeit])<0.0416),0,Tableau1[Wartezeit Ende]-Tableau1[Beginn der Wartezeit]))) -> 0 | X13: =IF(Tableau1[EX]="S",Tableau1[Jour]+Tableau1[Nuit],0) -> 0 | Y13: 0 | Z13: =Tableau1[Km]*Data!$B$6 -> 0 | AA13: =Tableau1[Tno]*Data!$C$2+Tableau1[Tsa]*Data!$C$3+Tableau1[Tco]*Data!$C$4+Tableau1[Tfe]*Data!$C$5+Tableau1[Tatt]*Data!$C$7+Tableau1[Suppl]*Data!$C$8 -> 0 | AB13: =Tableau1[Fahrtkosten]+Tableau1[Leistung und Wartezeit] -> 0
E16: Gesamtbetrag der Reisekosten | H16: Gesamtbetrag ohne Reisekosten | AA16: Gesamtbetrag
E17: exkl. MwSt. | F17: =SUM(Tableau1[Fahrtkosten]) -> 0 | H17: exkl. MwSt. | Y17: =SUM(Tableau1[Leistung und Wartezeit]) -> 0 | AA17: exkl. MwSt. | AB17: =SUM(Tableau1[Gesamtbetrag]) -> 0
E18: MwSt. | F18: =IF($AC$1=1,F17*21%,0) -> 0 | H18: MwSt. | Y18: =IF($AC$1=1,Y17*21%,0) -> 0 | AA18: MwSt. | AB18: =IF($AC$1=1,AB17*21%,0) -> 0
E20: inkl. MwSt. | F20: =F17+F18 -> 0 | H20: inkl. MwSt. | Y20: =Y17+Y18 -> 0 | AA20: inkl. MwSt. | AB20: =AB17+ROUND(AB18,2) -> 0
Z22: Unterschrift :
Y29: Ich erkläre ehrenwörtlich, dass die oben genannte Erklärung richtig und vollständig ist.
C30: Zusammenfassung
C31: Zusammenfassung | D31: Stunden | E31: Preis | F31: Tarif
C32: Ohne Erhöhung | D32: =SUM(Tableau1[Tno]) -> 0 | E32: =D32*Data!$C$2 -> 0 | F32: =Data!B2 -> 58.63
C33: Erhöhung um 50% | D33: =SUM(Tableau1[Tsa]) -> 0 | E33: =D33*Data!$C$3 -> 0 | F33: =Data!B3 -> 87.945
C34: Erhöhung um 65% | D34: =SUM(Tableau1[Tco]) -> 0 | E34: =D34*Data!$C$4 -> 0 | F34: =Data!B4 -> 96.7395
C35: Erhöhung um 100% | D35: =SUM(Tableau1[Tfe]) -> 0 | E35: =D35*Data!$C$5 -> 0 | F35: =Data!B5 -> 117.26
C36: COVID-Zuschlag | D36: =SUM(Tableau1[Suppl]) -> 0 | E36: =D36*Data!$C$8 -> 0 | F36: =Data!B8 -> 8.7945
C37: Wartezeit | D37: =SUM(Tableau1[Tatt]) -> 0 | E37: =D37*Data!$C$7 -> 0 | F37: =Data!B7 -> 41.53
C38: Km | D38: =SUM(Tableau1[Km]) -> 0 | E38: =D38*Data!$B$6 -> 0 | F38: =Data!B6 -> 0.6471
F39: =SUM(E32:E38) -> 0

Sheet Data (hidden)
A1: Tarifs | B1: heures | C1: 24h | F1: Holidays
A2: Normal | B2: 58.63 | C2: =Tableau2[[#This Row],[heures]]*24 -> 1407.12 | F2: 2023-01-01
A3: Samedi | B3: =B2*1.5 -> 87.945 | C3: =Tableau2[[#This Row],[heures]]*24 -> 2110.68 | F3: 2023-04-10
A4: Coffre | B4: =B2*1.65 -> 96.7395 | C4: =Tableau2[[#This Row],[heures]]*24 -> 2321.748 | F4: 2023-05-01
A5: Holiday | B5: =B2*2 -> 117.26 | C5: =Tableau2[[#This Row],[heures]]*24 -> 2814.24 | F5: 2023-05-18
A6: Distance | B6: 0.6471 | C6: =Tableau2[[#This Row],[heures]]*24 -> 15.5304 | F6: 2023-05-29
A7: Attente | B7: 41.53 | C7: =Tableau2[[#This Row],[heures]]*24 -> 996.72 | F7: 2023-07-21
A8: Covid | B8: =B2*15% -> 8.7945 | C8: =Tableau2[[#This Row],[heures]]*24 -> 211.068 | F8: 2023-08-15
F9: 2023-11-01
F10: 2023-11-11
F11: 2023-12-25
